[Event "Titled Tuesday Blitz February 07 Early 2023"]
[White "Samunenkov, Ihor"]
[Black "Avinash, Ramesh"]
[WhiteFideId "14187086"]
[BlackFideId "45018340"]
[WhiteElo "2501"]
[BlackElo "2319"]
[Result "1/2-1/2"]
[Round "05"]
[TimeControl "180+2"]
[Date "2023.02.07"]
[WhiteClock "0:00:02"]
[BlackClock "0:01:06"]

1. e4 {[%clk 0:02:59]}  c5 {[%clk 0:02:59]} 2. Nf3 {[%clk 0:02:58]}  d6 {[%clk 0:02:59]} 3. d4 {[%clk 0:02:59]}  cxd4 {[%clk 0:03:00]} 4. Nxd4 {[%clk 0:03:00]}  Nf6 {[%clk 0:03:00]} 5. Nc3 {[%clk 0:03:00]}  a6 {[%clk 0:03:01]} 6. h3 {[%clk 0:03:01]}  g6 {[%clk 0:02:57]} 7. g3 {[%clk 0:02:55]}  Bg7 {[%clk 0:02:56]} 8. Bg2 {[%clk 0:02:55]}  O-O {[%clk 0:02:57]} 9. O-O {[%clk 0:02:56]}  Nc6 {[%clk 0:02:58]} 10. Nb3 {[%clk 0:02:53]}  Be6 {[%clk 0:02:55]} 11. Nd5 {[%clk 0:02:50]}  Rc8 {[%clk 0:02:49]} 12. c3 {[%clk 0:02:48]}  Ne5 {[%clk 0:02:46]} 13. Nd4 {[%clk 0:02:34]}  Bxd5 {[%clk 0:02:41]} 14. exd5 {[%clk 0:02:35]}  Nc4 {[%clk 0:02:40]} 15. b3 {[%clk 0:02:29]}  Nb6 {[%clk 0:02:39]} 16. c4 {[%clk 0:02:28]}  Nbd7 {[%clk 0:02:37]} 17. Re1 {[%clk 0:02:25]}  Re8 {[%clk 0:02:36]} 18. Bb2 {[%clk 0:02:16]}  Nc5 {[%clk 0:02:35]} 19. Rc1 {[%clk 0:02:12]}  Qd7 {[%clk 0:02:32]} 20. b4 {[%clk 0:01:52]}  Na4 {[%clk 0:02:28]} 21. Ba1 {[%clk 0:01:53]}  Nb6 {[%clk 0:02:28]} 22. Qb3 {[%clk 0:01:53]}  Qa4 {[%clk 0:02:23]} 23. Red1 {[%clk 0:01:21]}  Qxb3 {[%clk 0:02:22]} 24. axb3 {[%clk 0:01:21]}  Nbd7 {[%clk 0:02:20]} 25. f4 {[%clk 0:01:18]}  Kf8 {[%clk 0:02:12]} 26. Re1 {[%clk 0:01:18]}  Nh5 {[%clk 0:02:11]} 27. Kh2 {[%clk 0:01:14]}  Bf6 {[%clk 0:02:10]} 28. Bf3 {[%clk 0:01:02]}  Ng7 {[%clk 0:02:03]} 29. g4 {[%clk 0:01:01]}  g5 {[%clk 0:02:00]} 30. fxg5 {[%clk 0:00:50]}  Bxg5 {[%clk 0:01:58]} 31. Rc2 {[%clk 0:00:44]}  Bf6 {[%clk 0:01:54]} 32. Be4 {[%clk 0:00:41]}  Kg8 {[%clk 0:01:50]} 33. Nf5 {[%clk 0:00:33]}  Nxf5 {[%clk 0:01:46]} 34. Bxf5 {[%clk 0:00:33]}  e6 {[%clk 0:01:36]} 35. dxe6 {[%clk 0:00:32]}  fxe6 {[%clk 0:01:25]} 36. Rxe6 {[%clk 0:00:19]}  Bxa1 {[%clk 0:01:23]} 37. Rxe8+ {[%clk 0:00:19]}  Rxe8 {[%clk 0:01:23]} 38. Bxd7 {[%clk 0:00:20]}  Re3 {[%clk 0:01:22]} 39. c5 {[%clk 0:00:13]}  Be5+ {[%clk 0:01:22]} 40. Kg2 {[%clk 0:00:12]}  Rg3+ {[%clk 0:01:16]} 41. Kf1 {[%clk 0:00:12]}  Rxh3 {[%clk 0:01:13]} 42. Bc8 {[%clk 0:00:07]}  Kf8 {[%clk 0:01:07]} 43. Bxb7 {[%clk 0:00:06]}  dxc5 {[%clk 0:01:08]} 44. bxc5 {[%clk 0:00:06]}  Rxb3 {[%clk 0:01:08]} 45. Bxa6 {[%clk 0:00:06]}  Rf3+ {[%clk 0:01:03]} 46. Ke2 {[%clk 0:00:05]}  Rg3 {[%clk 0:01:02]} 47. Rc4 {[%clk 0:00:05]}  Rc3 {[%clk 0:01:00]} 48. c6 {[%clk 0:00:03]}  Rxc4 {[%clk 0:00:59]} 49. Bxc4 {[%clk 0:00:03]}  Kg7 {[%clk 0:01:00]} 50. Kf3 {[%clk 0:00:04]}  h5 {[%clk 0:00:59]} 51. gxh5 {[%clk 0:00:04]}  Bc7 {[%clk 0:00:58]} 52. Kg4 {[%clk 0:00:04]}  Kh8 {[%clk 0:00:59]} 53. Kg5 {[%clk 0:00:04]}  Ba5 {[%clk 0:01:00]} 54. Kg6 {[%clk 0:00:04]}  Bb6 {[%clk 0:01:00]} 55. Bd3 {[%clk 0:00:03]}  Ba5 {[%clk 0:01:01]} 56. h6 {[%clk 0:00:02]}  Bb6 {[%clk 0:01:01]} 57. Kf7 {[%clk 0:00:03]}  Ba5 {[%clk 0:01:01]} 58. Bg6 {[%clk 0:00:03]}  Bb6 {[%clk 0:01:01]} 59. Ke7 {[%clk 0:00:03]}  Ba5 {[%clk 0:01:01]} 60. Kd7 {[%clk 0:00:04]}  Bb6 {[%clk 0:01:02]} 61. Kc8 {[%clk 0:00:04]}  Ba5 {[%clk 0:01:02]} 62. Kb7 {[%clk 0:00:05]}  Bd8 {[%clk 0:01:02]} 63. c7 {[%clk 0:00:03]}  Bxc7 {[%clk 0:01:02]} 64. Kxc7 {[%clk 0:00:04]}  Kg8 {[%clk 0:01:03]} 65. Kd6 {[%clk 0:00:02]}  Kh8 {[%clk 0:01:04]} 66. Ke6 {[%clk 0:00:02]}  Kg8 {[%clk 0:01:05]} 67. Kf6 {[%clk 0:00:03]}  Kh8 {[%clk 0:01:06]} 68. Kf7 {[%clk 0:00:02]} 1/2-1/2


[Site "https://www.chess.com"]

[Event "Titled Tuesday Blitz February 07 Early 2023"]
[White "Gokerkan, Cem Kaan"]
[Black "Vaishali, Rameshbabu"]
[WhiteFideId "6336760"]
[BlackFideId "5091756"]
[WhiteElo "2500"]
[BlackElo "2418"]
[Result "1-0"]
[Round "05"]
[TimeControl "180+2"]
[Date "2023.02.07"]
[WhiteClock "0:00:03"]
[BlackClock "0:00:02"]

1. e4 {[%clk 0:03:00]}  c5 {[%clk 0:02:59]} 2. c3 {[%clk 0:03:01]}  Nf6 {[%clk 0:02:57]} 3. e5 {[%clk 0:03:02]}  Nd5 {[%clk 0:02:57]} 4. d4 {[%clk 0:03:03]}  cxd4 {[%clk 0:02:57]} 5. Bc4 {[%clk 0:03:03]}  Qc7 {[%clk 0:02:56]} 6. Bb3 {[%clk 0:03:01]}  Qxe5+ {[%clk 0:02:47]} 7. Ne2 {[%clk 0:03:02]}  Nc6 {[%clk 0:02:37]} 8. cxd4 {[%clk 0:03:00]}  Qh5 {[%clk 0:02:27]} 9. O-O {[%clk 0:02:50]}  e6 {[%clk 0:02:26]} 10. Bxd5 {[%clk 0:02:18]}  exd5 {[%clk 0:01:46]} 11. Nf4 {[%clk 0:02:19]}  Qxd1 {[%clk 0:01:42]} 12. Rxd1 {[%clk 0:02:19]}  Bd6 {[%clk 0:01:41]} 13. Nxd5 {[%clk 0:02:18]}  O-O {[%clk 0:01:40]} 14. Nbc3 {[%clk 0:02:19]}  b6 {[%clk 0:01:30]} 15. Bf4 {[%clk 0:02:16]}  Bxf4 {[%clk 0:01:28]} 16. Nxf4 {[%clk 0:02:17]}  Ba6 {[%clk 0:01:26]} 17. d5 {[%clk 0:02:10]}  Ne5 {[%clk 0:01:16]} 18. d6 {[%clk 0:02:11]}  Bb7 {[%clk 0:00:58]} 19. Rac1 {[%clk 0:01:52]}  f6 {[%clk 0:00:43]} 20. Nb5 {[%clk 0:01:40]}  Kf7 {[%clk 0:00:36]} 21. Rc7 {[%clk 0:01:37]}  a6 {[%clk 0:00:21]} 22. Nd4 {[%clk 0:01:24]}  Rab8 {[%clk 0:00:15]} 23. Nd3 {[%clk 0:01:17]}  Rfd8 {[%clk 0:00:04]} 24. f4 {[%clk 0:01:03]}  Nc6 {[%clk 0:00:03]} 25. Nf5 {[%clk 0:00:51]}  g6 {[%clk 0:00:02]} 26. Ne3 {[%clk 0:00:44]}  a5 {[%clk 0:00:02]} 27. Nd5 {[%clk 0:00:38]}  Ke6 {[%clk 0:00:01]} 28. Nxb6 {[%clk 0:00:34]}  Kxd6 {[%clk 0:00:02]} 29. Rxd7+ {[%clk 0:00:35]}  Rxd7 {[%clk 0:00:02]} 30. Nf2+ {[%clk 0:00:35]}  Kc7 {[%clk 0:00:01]} 31. Nxd7 {[%clk 0:00:36]}  Rd8 {[%clk 0:00:01]} 32. Nxf6 {[%clk 0:00:37]}  Nd4 {[%clk 0:00:01]} 33. Nxh7 {[%clk 0:00:32]}  Rd6 {[%clk 0:00:01]} 34. Ng5 {[%clk 0:00:29]}  Kb6 {[%clk 0:00:01]} 35. h3 {[%clk 0:00:27]}  a4 {[%clk 0:00:01]} 36. Kh1 {[%clk 0:00:20]}  Ka5 {[%clk 0:00:01]} 37. Nge4 {[%clk 0:00:18]}  Rd8 {[%clk 0:00:01]} 38. Nc5 {[%clk 0:00:18]}  Bc6 {[%clk 0:00:01]} 39. b3 {[%clk 0:00:16]}  a3 {[%clk 0:00:01]} 40. Ncd3 {[%clk 0:00:12]}  Kb6 {[%clk 0:00:02]} 41. Ne5 {[%clk 0:00:12]}  Bb7 {[%clk 0:00:02]} 42. Nc4+ {[%clk 0:00:12]}  Kc5 {[%clk 0:00:02]} 43. Nxa3 {[%clk 0:00:13]}  Re8 {[%clk 0:00:02]} 44. b4+ {[%clk 0:00:05]}  Kd5 {[%clk 0:00:02]} 45. Nc2 {[%clk 0:00:05]}  Kc4 {[%clk 0:00:02]} 46. Nxd4 {[%clk 0:00:05]}  Re3 {[%clk 0:00:02]} 47. Kg1 {[%clk 0:00:05]}  Rg3 {[%clk 0:00:02]} 48. Ne2 {[%clk 0:00:03]}  Rxg2+ {[%clk 0:00:02]} 49. Kf1 {[%clk 0:00:04]}  Rh2 {[%clk 0:00:03]} 50. Rd4+ {[%clk 0:00:04]}  Kb5 {[%clk 0:00:02]} 51. Rd7 {[%clk 0:00:04]}  Bf3 {[%clk 0:00:02]} 52. Rd3 {[%clk 0:00:04]}  Bb7 {[%clk 0:00:02]} 53. a3 {[%clk 0:00:04]}  Rg2 {[%clk 0:00:01]} 54. Rc3 {[%clk 0:00:03]}  Ka4 {[%clk 0:00:01]} 55. Rc7 {[%clk 0:00:03]}  Bd5 {[%clk 0:00:01]} 56. Rc5 {[%clk 0:00:03]}  Bb7 {[%clk 0:00:01]} 57. Rg5 {[%clk 0:00:03]}  Kb3 {[%clk 0:00:02]} 58. Rxg2 {[%clk 0:00:03]} 1-0


[Site "https://www.chess.com"]

[Event "Titled Tuesday Blitz February 07 Early 2023"]
[White "Yuan, Qingyu"]
[Black "Malek, Jan"]
[WhiteFideId "8609772"]
[BlackFideId "21864080"]
[WhiteElo "2373"]
[BlackElo "2370"]
[Result "1-0"]
[Round "05"]
[TimeControl "180+2"]
[Date "2023.02.07"]
[WhiteClock "0:00:19"]
[BlackClock "0:00:03"]

1. e4 {[%clk 0:03:00]}  e6 {[%clk 0:02:57]} 2. d4 {[%clk 0:03:00]}  d5 {[%clk 0:02:58]} 3. Nd2 {[%clk 0:03:01]}  h6 {[%clk 0:02:55]} 4. Bd3 {[%clk 0:02:53]}  c5 {[%clk 0:02:54]} 5. dxc5 {[%clk 0:02:43]}  Bxc5 {[%clk 0:02:53]} 6. Ngf3 {[%clk 0:02:43]}  Nf6 {[%clk 0:02:51]} 7. Qe2 {[%clk 0:02:39]}  Nc6 {[%clk 0:02:48]} 8. c3 {[%clk 0:02:28]}  O-O {[%clk 0:02:46]} 9. O-O {[%clk 0:02:27]}  a6 {[%clk 0:02:38]} 10. e5 {[%clk 0:02:18]}  Nd7 {[%clk 0:02:38]} 11. Nb3 {[%clk 0:02:18]}  Ba7 {[%clk 0:02:36]} 12. Bf4 {[%clk 0:02:15]}  f6 {[%clk 0:02:19]} 13. exf6 {[%clk 0:02:03]}  Rxf6 {[%clk 0:02:15]} 14. Bg3 {[%clk 0:02:02]}  Qf8 {[%clk 0:02:09]} 15. Nbd4 {[%clk 0:01:56]}  Bxd4 {[%clk 0:01:33]} 16. Nxd4 {[%clk 0:01:42]}  Nc5 {[%clk 0:00:51]} 17. Bc2 {[%clk 0:01:33]}  Bd7 {[%clk 0:00:51]} 18. Nxc6 {[%clk 0:01:25]}  Bxc6 {[%clk 0:00:50]} 19. Rfe1 {[%clk 0:01:17]}  Ne4 {[%clk 0:00:43]} 20. f3 {[%clk 0:00:57]}  Nxg3 {[%clk 0:00:34]} 21. hxg3 {[%clk 0:00:57]}  Qc5+ {[%clk 0:00:30]} 22. Kh2 {[%clk 0:00:54]}  Qb6 {[%clk 0:00:27]} 23. Rab1 {[%clk 0:00:42]}  Re8 {[%clk 0:00:26]} 24. Qd3 {[%clk 0:00:41]}  e5 {[%clk 0:00:22]} 25. Re2 {[%clk 0:00:34]}  Qc7 {[%clk 0:00:20]} 26. Qh7+ {[%clk 0:00:31]}  Kf7 {[%clk 0:00:20]} 27. Rbe1 {[%clk 0:00:31]}  Qd6 {[%clk 0:00:19]} 28. Bf5 {[%clk 0:00:23]}  Bb5 {[%clk 0:00:05]} 29. Re3 {[%clk 0:00:21]}  Bc6 {[%clk 0:00:04]} 30. Bg4 {[%clk 0:00:21]}  Rg6 {[%clk 0:00:02]} 31. Bh5 {[%clk 0:00:21]}  e4 {[%clk 0:00:02]} 32. fxe4 {[%clk 0:00:19]}  dxe4 {[%clk 0:00:03]} 33. Rf1+ {[%clk 0:00:19]} 1-0


[Site "https://www.chess.com"]

[Event "Titled Tuesday Blitz February 07 Early 2023"]
[White "Indjic, Aleksandar"]
[Black "Leiva, Gianmarco"]
[WhiteFideId "911925"]
[BlackFideId "3804399"]
[WhiteElo "2618"]
[BlackElo "2392"]
[Result "1/2-1/2"]
[Round "05"]
[TimeControl "180+2"]
[Date "2023.02.07"]
[WhiteClock "0:00:14"]
[BlackClock "0:00:02"]

1. e4 {[%clk 0:02:56]}  c5 {[%clk 0:02:59]} 2. Nf3 {[%clk 0:02:55]}  d6 {[%clk 0:02:59]} 3. d4 {[%clk 0:02:56]}  cxd4 {[%clk 0:03:00]} 4. Nxd4 {[%clk 0:02:55]}  Nf6 {[%clk 0:03:00]} 5. Nc3 {[%clk 0:02:56]}  a6 {[%clk 0:02:59]} 6. Bc4 {[%clk 0:02:56]}  e6 {[%clk 0:02:59]} 7. Bb3 {[%clk 0:02:56]}  b5 {[%clk 0:02:59]} 8. Qf3 {[%clk 0:02:55]}  Qb6 {[%clk 0:02:51]} 9. Be3 {[%clk 0:02:54]}  Qb7 {[%clk 0:02:51]} 10. a3 {[%clk 0:02:50]}  Be7 {[%clk 0:02:45]} 11. Qg3 {[%clk 0:02:45]}  Nbd7 {[%clk 0:02:39]} 12. O-O-O {[%clk 0:02:10]}  Nc5 {[%clk 0:02:24]} 13. f3 {[%clk 0:02:04]}  O-O {[%clk 0:02:21]} 14. Bh6 {[%clk 0:01:48]}  Ne8 {[%clk 0:01:47]} 15. h4 {[%clk 0:01:45]}  Bd7 {[%clk 0:01:45]} 16. h5 {[%clk 0:01:43]}  Kh8 {[%clk 0:01:39]} 17. Be3 {[%clk 0:01:40]}  Bf6 {[%clk 0:01:34]} 18. h6 {[%clk 0:01:38]}  g6 {[%clk 0:01:35]} 19. Bg5 {[%clk 0:01:36]}  Bxg5+ {[%clk 0:01:21]} 20. Qxg5 {[%clk 0:01:37]}  a5 {[%clk 0:01:21]} 21. Qe7 {[%clk 0:01:32]}  Kg8 {[%clk 0:01:18]} 22. Ncxb5 {[%clk 0:01:24]}  Bxb5 {[%clk 0:01:07]} 23. Qxb7 {[%clk 0:01:21]}  Nxb7 {[%clk 0:01:06]} 24. Nxb5 {[%clk 0:01:21]}  a4 {[%clk 0:01:06]} 25. Ba2 {[%clk 0:01:21]}  Ra5 {[%clk 0:01:05]} 26. c4 {[%clk 0:01:20]}  Ra6 {[%clk 0:01:01]} 27. Rd2 {[%clk 0:01:19]}  f6 {[%clk 0:01:01]} 28. Rhd1 {[%clk 0:01:18]}  Kf7 {[%clk 0:01:01]} 29. f4 {[%clk 0:01:16]}  Ke7 {[%clk 0:00:50]} 30. e5 {[%clk 0:01:15]}  fxe5 {[%clk 0:00:50]} 31. fxe5 {[%clk 0:01:15]}  Rf5 {[%clk 0:00:51]} 32. exd6+ {[%clk 0:01:09]}  Nexd6 {[%clk 0:00:51]} 33. Nd4 {[%clk 0:00:55]}  Rh5 {[%clk 0:00:50]} 34. Re2 {[%clk 0:00:53]}  Nc5 {[%clk 0:00:50]} 35. Rde1 {[%clk 0:00:46]}  Nf5 {[%clk 0:00:48]} 36. Nxf5+ {[%clk 0:00:41]}  gxf5 {[%clk 0:00:46]} 37. Bb1 {[%clk 0:00:37]}  Kf6 {[%clk 0:00:41]} 38. Bc2 {[%clk 0:00:36]}  Rh4 {[%clk 0:00:38]} 39. Kb1 {[%clk 0:00:34]}  Rxc4 {[%clk 0:00:37]} 40. Rd2 {[%clk 0:00:34]}  Rh4 {[%clk 0:00:28]} 41. Rf1 {[%clk 0:00:35]}  Ke7 {[%clk 0:00:24]} 42. Re2 {[%clk 0:00:34]}  Kf6 {[%clk 0:00:23]} 43. Ka2 {[%clk 0:00:33]}  Rd6 {[%clk 0:00:22]} 44. Ref2 {[%clk 0:00:31]}  Rd5 {[%clk 0:00:21]} 45. Rf4 {[%clk 0:00:30]}  Rd4 {[%clk 0:00:19]} 46. g3 {[%clk 0:00:16]}  Rdxf4 {[%clk 0:00:17]} 47. Rxf4 {[%clk 0:00:17]}  Rxf4 {[%clk 0:00:15]} 48. gxf4 {[%clk 0:00:18]}  Kg6 {[%clk 0:00:14]} 49. b4 {[%clk 0:00:18]}  axb3+ {[%clk 0:00:14]} 50. Bxb3 {[%clk 0:00:18]}  Kxh6 {[%clk 0:00:15]} 51. a4 {[%clk 0:00:19]}  Kh5 {[%clk 0:00:14]} 52. a5 {[%clk 0:00:19]}  Kg4 {[%clk 0:00:14]} 53. Bc4 {[%clk 0:00:18]}  Kxf4 {[%clk 0:00:14]} 54. Ka3 {[%clk 0:00:18]}  h5 {[%clk 0:00:07]} 55. Kb4 {[%clk 0:00:18]}  Nd7 {[%clk 0:00:05]} 56. Bxe6 {[%clk 0:00:17]}  Nb8 {[%clk 0:00:04]} 57. Bd5 {[%clk 0:00:15]}  Ke3 {[%clk 0:00:03]} 58. Kc5 {[%clk 0:00:14]}  f4 {[%clk 0:00:04]} 59. Kb6 {[%clk 0:00:13]}  f3 {[%clk 0:00:04]} 60. Kb7 {[%clk 0:00:13]}  f2 {[%clk 0:00:02]} 61. Bg2 {[%clk 0:00:13]}  Nd7 {[%clk 0:00:02]} 62. Kc6 {[%clk 0:00:12]}  Nb8+ {[%clk 0:00:02]} 63. Kb7 {[%clk 0:00:13]}  Nd7 {[%clk 0:00:03]} 64. Kc6 {[%clk 0:00:13]}  Nb8+ {[%clk 0:00:02]} 65. Kb7 {[%clk 0:00:14]} 1/2-1/2


[Site "https://www.chess.com"]

[Event "Titled Tuesday Blitz February 07 Early 2023"]
[White "Oro, Faustino"]
[Black "Korobov, Anton"]
[WhiteFideId "20000197"]
[BlackFideId "14105730"]
[WhiteElo "2269"]
[BlackElo "2664"]
[Result "0-1"]
[Round "05"]
[TimeControl "180+2"]
[Date "2023.02.07"]
[WhiteClock "0:00:09"]
[BlackClock "0:00:52"]

1. e4 {[%clk 0:03:00]}  c5 {[%clk 0:02:59]} 2. Nf3 {[%clk 0:03:00]}  d6 {[%clk 0:03:00]} 3. d4 {[%clk 0:03:00]}  cxd4 {[%clk 0:03:00]} 4. Nxd4 {[%clk 0:03:01]}  Nf6 {[%clk 0:03:00]} 5. Nc3 {[%clk 0:03:01]}  a6 {[%clk 0:03:01]} 6. f3 {[%clk 0:03:01]}  Qb6 {[%clk 0:03:00]} 7. Nb3 {[%clk 0:02:41]}  e6 {[%clk 0:02:58]} 8. Qd3 {[%clk 0:02:36]}  Nc6 {[%clk 0:02:57]} 9. Be3 {[%clk 0:02:35]}  Qc7 {[%clk 0:02:57]} 10. Qd2 {[%clk 0:02:35]}  b5 {[%clk 0:02:55]} 11. Bd3 {[%clk 0:02:28]}  Be7 {[%clk 0:02:51]} 12. O-O {[%clk 0:02:27]}  O-O {[%clk 0:02:50]} 13. Nd4 {[%clk 0:02:18]}  Bb7 {[%clk 0:02:47]} 14. Nxc6 {[%clk 0:02:14]}  Bxc6 {[%clk 0:02:45]} 15. Rae1 {[%clk 0:02:10]}  b4 {[%clk 0:02:37]} 16. Ne2 {[%clk 0:02:09]}  d5 {[%clk 0:02:37]} 17. exd5 {[%clk 0:01:54]}  Nxd5 {[%clk 0:02:32]} 18. Bf2 {[%clk 0:01:53]}  Rfd8 {[%clk 0:02:28]} 19. Qc1 {[%clk 0:01:40]}  Bb5 {[%clk 0:02:19]} 20. Rd1 {[%clk 0:01:28]}  Bxd3 {[%clk 0:02:13]} 21. Rxd3 {[%clk 0:01:28]}  Rac8 {[%clk 0:02:13]} 22. c3 {[%clk 0:01:17]}  Qc4 {[%clk 0:02:07]} 23. Rfd1 {[%clk 0:01:03]}  Qxa2 {[%clk 0:02:05]} 24. Nd4 {[%clk 0:00:53]}  bxc3 {[%clk 0:01:54]} 25. bxc3 {[%clk 0:00:53]}  h6 {[%clk 0:01:46]} 26. R1d2 {[%clk 0:00:49]}  Qc4 {[%clk 0:01:45]} 27. Ne2 {[%clk 0:00:45]}  a5 {[%clk 0:01:24]} 28. Rd4 {[%clk 0:00:42]}  Qa6 {[%clk 0:01:16]} 29. Rg4 {[%clk 0:00:41]}  Bf6 {[%clk 0:01:12]} 30. Qd1 {[%clk 0:00:20]}  Nxc3 {[%clk 0:00:58]} 31. Nxc3 {[%clk 0:00:20]}  Rxd2 {[%clk 0:00:57]} 32. Qxd2 {[%clk 0:00:21]}  Rxc3 {[%clk 0:00:57]} 33. Qxh6 {[%clk 0:00:20]}  Qe2 {[%clk 0:00:51]} 34. h4 {[%clk 0:00:12]}  Rc2 {[%clk 0:00:51]} 35. Qxf6 {[%clk 0:00:07]}  Qxf2+ {[%clk 0:00:51]} 36. Kh1 {[%clk 0:00:08]}  Qf1+ {[%clk 0:00:51]} 37. Kh2 {[%clk 0:00:08]}  Rxg2+ {[%clk 0:00:51]} 38. Rxg2 {[%clk 0:00:09]}  Qxg2+ {[%clk 0:00:51]} 39. Kxg2 {[%clk 0:00:09]}  gxf6 {[%clk 0:00:52]} 0-1


[Site "https://www.chess.com"]

[Event "Titled Tuesday Blitz February 07 Early 2023"]
[White "Dehtiarov, Roman"]
[Black "Tsydypov, Zhamsaran"]
[WhiteFideId "14186640"]
[BlackFideId "4108566"]
[WhiteElo "2289"]
[BlackElo "2518"]
[Result "0-1"]
[Round "05"]
[TimeControl "180+2"]
[Date "2023.02.07"]
[WhiteClock "0:00:01"]
[BlackClock "0:01:29"]

1. e4 {[%clk 0:03:00]}  c5 {[%clk 0:02:59]} 2. Nc3 {[%clk 0:03:00]}  e6 {[%clk 0:02:54]} 3. f4 {[%clk 0:02:59]}  Nc6 {[%clk 0:02:53]} 4. Nf3 {[%clk 0:02:58]}  a6 {[%clk 0:02:53]} 5. d3 {[%clk 0:02:56]}  b5 {[%clk 0:02:53]} 6. g3 {[%clk 0:02:53]}  Bb7 {[%clk 0:02:53]} 7. Bg2 {[%clk 0:02:45]}  Nge7 {[%clk 0:02:53]} 8. e5 {[%clk 0:02:45]}  d5 {[%clk 0:02:51]} 9. exd6 {[%clk 0:02:44]}  Nf5 {[%clk 0:02:51]} 10. Ne4 {[%clk 0:02:42]}  Bxd6 {[%clk 0:02:48]} 11. O-O {[%clk 0:02:41]}  O-O {[%clk 0:02:48]} 12. g4 {[%clk 0:02:37]}  Nfe7 {[%clk 0:02:47]} 13. Be3 {[%clk 0:02:36]}  Nd5 {[%clk 0:02:47]} 14. Qd2 {[%clk 0:02:36]}  Qc7 {[%clk 0:02:33]} 15. Nxd6 {[%clk 0:02:22]}  Qxd6 {[%clk 0:02:33]} 16. Rae1 {[%clk 0:02:23]}  Rac8 {[%clk 0:02:31]} 17. Qf2 {[%clk 0:02:18]}  Nxe3 {[%clk 0:02:31]} 18. Qxe3 {[%clk 0:02:19]}  Nb4 {[%clk 0:02:31]} 19. Re2 {[%clk 0:02:07]}  Rfd8 {[%clk 0:02:27]} 20. Ne5 {[%clk 0:01:58]}  Bxg2 {[%clk 0:02:26]} 21. Rxg2 {[%clk 0:01:58]}  f6 {[%clk 0:02:27]} 22. Nf3 {[%clk 0:01:52]}  Nd5 {[%clk 0:02:27]} 23. Qe4 {[%clk 0:01:52]}  Nxf4 {[%clk 0:02:27]} 24. Rg3 {[%clk 0:01:47]}  e5 {[%clk 0:02:24]} 25. g5 {[%clk 0:01:42]}  f5 {[%clk 0:02:24]} 26. Qe3 {[%clk 0:01:27]}  Re8 {[%clk 0:02:24]} 27. Re1 {[%clk 0:01:22]}  Ng6 {[%clk 0:02:19]} 28. Rg2 {[%clk 0:01:07]}  c4 {[%clk 0:02:19]} 29. dxc4 {[%clk 0:01:00]}  Rxc4 {[%clk 0:02:18]} 30. c3 {[%clk 0:01:00]}  Re4 {[%clk 0:02:18]} 31. Qf2 {[%clk 0:00:58]}  Nf4 {[%clk 0:02:17]} 32. Rg3 {[%clk 0:00:41]}  Rxe1+ {[%clk 0:02:13]} 33. Nxe1 {[%clk 0:00:32]}  Qd1 {[%clk 0:02:13]} 34. Re3 {[%clk 0:00:28]}  Qg4+ {[%clk 0:02:08]} 35. Qg3 {[%clk 0:00:24]}  Ne2+ {[%clk 0:02:08]} 36. Rxe2 {[%clk 0:00:24]}  Qxe2 {[%clk 0:02:09]} 37. g6 {[%clk 0:00:23]}  hxg6 {[%clk 0:02:09]} 38. Nd3 {[%clk 0:00:14]}  g5 {[%clk 0:02:04]} 39. Nf2 {[%clk 0:00:10]}  g4 {[%clk 0:02:04]} 40. Qh4 {[%clk 0:00:10]}  Qf3 {[%clk 0:01:51]} 41. Qh5 {[%clk 0:00:07]}  Rd8 {[%clk 0:01:44]} 42. Qg5 {[%clk 0:00:07]}  Rd1+ {[%clk 0:01:40]} 43. Nxd1 {[%clk 0:00:07]}  Qxd1+ {[%clk 0:01:41]} 44. Kg2 {[%clk 0:00:08]}  Qc2+ {[%clk 0:01:41]} 45. Kg1 {[%clk 0:00:08]}  Qb1+ {[%clk 0:01:42]} 46. Kg2 {[%clk 0:00:08]}  Qxb2+ {[%clk 0:01:42]} 47. Kg1 {[%clk 0:00:09]}  Qa1+ {[%clk 0:01:42]} 48. Kg2 {[%clk 0:00:09]}  Qxa2+ {[%clk 0:01:41]} 49. Kg1 {[%clk 0:00:08]}  Qb1+ {[%clk 0:01:41]} 50. Kg2 {[%clk 0:00:08]}  Qc2+ {[%clk 0:01:42]} 51. Kg1 {[%clk 0:00:08]}  Qd1+ {[%clk 0:01:42]} 52. Kf2 {[%clk 0:00:08]}  Qd6 {[%clk 0:01:37]} 53. Ke1 {[%clk 0:00:05]}  Qf6 {[%clk 0:01:36]} 54. Qe3 {[%clk 0:00:05]}  e4 {[%clk 0:01:36]} 55. Qc5 {[%clk 0:00:05]}  Kh7 {[%clk 0:01:35]} 56. Ke2 {[%clk 0:00:04]}  Kg6 {[%clk 0:01:34]} 57. Qc8 {[%clk 0:00:04]}  Kg5 {[%clk 0:01:33]} 58. Qc7 {[%clk 0:00:03]}  g6 {[%clk 0:01:32]} 59. Qc5 {[%clk 0:00:02]}  Kh6 {[%clk 0:01:31]} 60. Qe3+ {[%clk 0:00:02]}  Kh5 {[%clk 0:01:29]} 61. Qc5 {[%clk 0:00:01]}  Qd8 {[%clk 0:01:29]} 62. Qe3 {[%clk 0:00:01]}  Qd3+ {[%clk 0:01:29]} 0-1


[Site "https://www.chess.com"]

[Event "Titled Tuesday Blitz February 07 Early 2023"]
[White "Pap, Gyula"]
[Black "Seo, Jung Min"]
[WhiteFideId "725323"]
[BlackFideId "1734687"]
[WhiteElo "2429"]
[BlackElo "2494"]
[Result "0-1"]
[Round "05"]
[TimeControl "180+2"]
[Date "2023.02.07"]
[WhiteClock "0:00:54"]
[BlackClock "0:01:23"]

1. d3 {[%clk 0:03:00]}  d5 {[%clk 0:02:57]} 2. Nd2 {[%clk 0:02:57]}  e5 {[%clk 0:02:57]} 3. Ngf3 {[%clk 0:02:57]}  Nd7 {[%clk 0:02:56]} 4. e4 {[%clk 0:02:55]}  Ngf6 {[%clk 0:02:56]} 5. Be2 {[%clk 0:02:54]}  c6 {[%clk 0:02:52]} 6. O-O {[%clk 0:02:54]}  Bd6 {[%clk 0:02:52]} 7. c3 {[%clk 0:02:54]}  O-O {[%clk 0:02:53]} 8. Re1 {[%clk 0:02:53]}  Re8 {[%clk 0:02:53]} 9. Bf1 {[%clk 0:02:53]}  Nf8 {[%clk 0:02:47]} 10. d4 {[%clk 0:02:36]}  Nxe4 {[%clk 0:02:35]} 11. Nxe4 {[%clk 0:02:34]}  dxe4 {[%clk 0:02:35]} 12. Nxe5 {[%clk 0:02:34]}  Bxe5 {[%clk 0:02:35]} 13. dxe5 {[%clk 0:02:35]}  Qxd1 {[%clk 0:02:35]} 14. Rxd1 {[%clk 0:02:36]}  Ng6 {[%clk 0:02:27]} 15. Rd4 {[%clk 0:02:11]}  Bf5 {[%clk 0:02:23]} 16. Rb4 {[%clk 0:02:10]}  b6 {[%clk 0:02:17]} 17. a4 {[%clk 0:01:57]}  Nxe5 {[%clk 0:02:15]} 18. a5 {[%clk 0:01:57]}  b5 {[%clk 0:02:15]} 19. a6 {[%clk 0:01:58]}  Nd3 {[%clk 0:02:10]} 20. Rd4 {[%clk 0:01:57]}  Rad8 {[%clk 0:02:07]} 21. Be3 {[%clk 0:01:54]}  c5 {[%clk 0:02:02]} 22. Rxd8 {[%clk 0:01:53]}  Rxd8 {[%clk 0:02:02]} 23. Ra5 {[%clk 0:01:39]}  Bd7 {[%clk 0:01:45]} 24. f3 {[%clk 0:01:38]}  f5 {[%clk 0:01:39]} 25. fxe4 {[%clk 0:01:38]}  fxe4 {[%clk 0:01:39]} 26. Ra1 {[%clk 0:00:56]}  Bc8 {[%clk 0:01:26]} 27. Bxd3 {[%clk 0:00:54]}  exd3 {[%clk 0:01:24]} 28. Bxc5 {[%clk 0:00:54]}  d2 {[%clk 0:01:23]} 29. Rd1 {[%clk 0:00:54]}  Bg4 {[%clk 0:01:23]} 0-1


[Site "https://www.chess.com"]